Cogmind - Beta 13 @@@ ROGUE MODE // 2024.05.01 @ 14:39:04 Player: BrainTooSmol Result: Self-destructed Performance ------------- Evolutions (2) 1000 Regions Visited (5) 1000 Robots Destroyed (87) 435 Value Destroyed (2715) 2715 Prototype IDs (5) 100 Alien Tech Used (0) 0 Bonus (884) 884 TOTAL SCORE: 6134 Bonus ------- High Alert Combat Kills 77 Follower Combat Kills 134 Entered Garrisons 200 Used RIF Installer 500 Friendly Fire -27 Cogmind --------- Core Integrity 345/550 Matter 179/300 Energy 83/100 System Corruption 0% Temperature Cool (12) Movement Treading (160) Location -8/Garrison Parts ------- > --- POWER (1) -------- (None) > --- PROPULSION (2) --- Light Treads Light Treads > --- UTILITY (6) ------ High-capacity Storage Unit Advanced Targeting Computer Advanced Targeting Computer > --- WEAPON (2) ------- (None) > --- INVENTORY (20) --- Nuclear Core Structural Scanner Trap Scanner ECM Suite Hacking Suite Long-range Tractor Beam Long-range Tractor Beam Heavy Assault Rifle Heavy Hammer Peak State ------------ > --- POWER ------------ Light Nuclear Core > --- PROPULSION ------- Improved Treads Advanced Treads > --- UTILITY ---------- High-capacity Storage Unit Advanced Targeting Computer Advanced Targeting Computer Light Armor Plating Hardened Light Armor Plating Hacking Suite > --- WEAPON ----------- Heavy Assault Rifle Assault Cannon > --- INVENTORY -------- Nuclear Core Light Treads Light Treads Structural Scanner Trap Scanner ECM Suite Light Armor Plating Light Armor Plating Light Armor Plating Light Armor Plating Hacking Suite Long-range Tractor Beam Long-range Tractor Beam Heavy Assault Rifle Rocket Launcher Rocket Launcher Rocket Launcher Heavy Hammer [Rating: 29] Favorites ----------- Power Nuclear Core Engine Ion Engine Power Core Nuclear Core Propulsion Improved Treads Treads Improved Treads Leg Aluminum Leg Wheel Wheel Utility Light Armor Plating Device Seismic Detector Storage High-capacity Storage Unit Processor Advanced Targeting Computer Hackware Hacking Suite Protection Light Armor Plating Weapon Improved Light Cannon Energy Gun Small Laser Ballistic Gun Assault Rifle Ballistic Cannon Improved Light Cannon Launcher Rocket Launcher Build | -11 -10 -10 -9 -8 -8 ------- Run | Yrd Mat Min Mat Mat Gar Slots Evolved 4 | . . . 2 2 . Power . | . . . . . . Propulsion . | . . . . . . Utility 4 | . . . 2 2 . Weapon . | . . . . . . Parts Attached 58 | 1 3 8 24 4 18 Power 6 | . 1 2 2 . 1 Engine 3 | . 1 1 1 . . Core 3 | . . 1 1 . 1 Reactor . | . . . . . . Propulsion 10 | . 2 1 3 1 3 Treads 9 | . 2 1 2 1 3 Leg . | . . . . . . Wheel 1 | . . . 1 . . Hover . | . . . . . . Flight . | . . . . . . Utility 21 | 1 . . 12 2 6 Device 3 | 1 . . 2 . . Storage 2 | . . . 2 . . Processor 4 | . . . . 2 2 Hackware 1 | . . . 1 . . Protection 11 | . . . 7 . 4 Artifact . | . . . . . . Weapon 21 | . . 5 7 1 8 Energy Gun 2 | . . 1 1 . . Energy Cannon . | . . . . . . Ballistic Gun 8 | . . 4 2 . 2 Ballistic Cannon 6 | . . . 4 1 1 Launcher 5 | . . . . . 5 Special Weapon . | . . . . . . Impact Weapon . | . . . . . . Slashing Weapon . | . . . . . . Piercing Weapon . | . . . . . . Special Melee Weapon . | . . . . . . Unidentified Prototypes 1 | . . . 1 . . Parts Lost 25 | . . 2 6 . 17 Power 3 | . . 1 1 . 1 Propulsion 3 | . . . . . 3 Utility 10 | . . . 3 . 7 Weapon 9 | . . 1 2 . 6 Highest Loss Streak 9 | . . 2 3 . 9 To Critical Strikes . | . . . . . . Average Slot Usage (%) 97 | . 100 99 96 98 95 Engine 3 | . 14 6 3 . . Core 5 | . . 7 5 9 5 Treads 15 | . 14 28 14 9 13 Leg 1 | . 13 . . . . Wheel 4 | . . . 7 9 4 Device 7 | . 14 14 8 . . Storage 11 | . 14 14 11 9 9 Processor 5 | . . . . 16 18 Hackware 7 | . . . 10 9 8 Protection 11 | . . . 13 18 17 Energy Gun 1 | . . 2 2 . . Ballistic Gun 9 | . 28 25 1 5 5 Ballistic Cannon 11 | . . . 18 12 11 Naked Turns . | . . . . . . Heaviest Build 64 | 13 15 15 63 64 64 Greatest Support 46 | 20 46 46 46 23 45 Greatest Overweight (x) 6 | . 1 . 6 6 6 Average Overweight (x) 2 | . . . 3 5 3 Largest Inventory Capacity 20 | 8 8 8 20 20 20 Average Capacity 15 | 8 8 8 15 20 20 Most Carried 20 | 6 8 8 20 20 20 Average Carried 12 | 6 7 7 12 19 17 Final Capacity 20 | 8 8 8 20 20 20 Final Carried 20 | 6 8 8 20 20 9 Class Distribution -------------------- 89% | Mutant 10% | Scavenger-Mutant Dominant Class ---------------- Mutant | -10/Materials Scavenger-Mutant | -10/Mines Mutant | -9/Materials Mutant | -8/Materials Mutant | -8/Garrison Resources | -11 -10 -10 -9 -8 -8 ----------- Run | Yrd Mat Min Mat Mat Gar Matter Collected 2190 | 216 166 200 989 99 520 Remotely 85 | . . . 85 . . Salvage Created 2216 | 19 184 226 984 185 618 Parts 125 | 4 13 13 49 9 37 Haulers Intercepted 5 | . . . 5 . . Recyclers Shooed 1 | . 1 . . . . Parts Field Recycled 1 | . . . 1 . . Retrieved Matter 3 | . . . 3 . . Parts Self-Destructed . | . . . . . . Prevented . | . . . . . . Kills | -11 -10 -10 -9 -8 -8 ------- Run | Yrd Mat Min Mat Mat Gar Combat Hostiles Destroyed 73 | . 8 8 27 4 26 Guns 27 | . 8 8 2 1 8 Cannons 35 | . . . 25 3 7 AOE 11 | . . . . . 11 Classes Destroyed 11 | 1 2 . 6 . 2 Worker 1 | . . . 1 . . Tunneler 1 | 1 . . . . . Hauler 5 | . . . 5 . . Operator 1 | . . . 1 . . Watcher 6 | . . . 5 . 1 Swarmer 19 | . 6 4 . . 9 Grunt 31 | . 2 4 15 3 7 Brawler 2 | . . . 2 . . Sentry 14 | . . . 10 1 3 Specialist 2 | . . . . . 2 Hunter 5 | . . . . . 5 Best Kill Streak 9 | 1 3 3 6 3 9 Combat Bots Only 9 | . 3 3 6 3 9 Max Kills in Single Turn 3 | 1 2 1 2 1 3 Gunslinging 1 | . 1 . . . . Exploded 3 | . . . . . 3 Melee . | . . . . . . Uniques/NPCs Destroyed . | . . . . . . Combat | -11 -10 -10 -9 -8 -8 -------- Run | Yrd Mat Min Mat Mat Gar Hostile Shots Fired 449 | . 41 51 138 8 211 Missed 129 | . 11 14 29 1 74 Damage Taken 4320 | . 298 457 1419 118 2028 Core 456 | . 27 92 132 19 186 Absorbed by Shields . | . . . . . . Regen/Repaired (Parts) 76 | . . . 76 . . Core Remaining (%) 73 | 100 . 52 67 . . Volleys Fired 236 | 1 26 31 109 7 62 Largest 2 | 2 2 2 2 2 2 Hottest 83 | 40 40 70 79 62 83 Shots Fired 436 | 2 52 61 203 14 104 Gun 171 | 2 52 61 18 7 31 Cannon 249 | . . . 185 7 57 Launcher 16 | . . . . . 16 Special . | . . . . . . Kinetic 405 | 2 52 54 195 14 88 Thermal 15 | . . 7 8 . . Explosive 16 | . . . . . 16 Electromagnetic . | . . . . . . Robot Hit Streak 20 | 1 7 14 11 8 20 Robot Miss Streak 4 | . 3 4 2 1 2 Penetration Max . | . . . . . . Secondary Targets 4 | . 2 2 . . . Max Gunslinging Chain 1 | . 1 1 . . . Shots Hit Robots 294 | 1 34 40 144 9 66 Core Hits 131 | 1 11 20 48 6 45 Critical Kills 3 | . . 1 . 1 1 Critical Parts Destroyed 2 | . 1 1 . . . Critical Strikes 12 | . 1 2 4 1 4 Destroy 6 | . 1 2 . 1 2 Blast 6 | . . . 4 . 2 Melee Attacks . | . . . . . . Impact . | . . . . . . Slashing . | . . . . . . Piercing . | . . . . . . Sneak Attacks . | . . . . . . Combat Hostiles . | . . . . . . Follow-up Attacks . | . . . . . . Damage Inflicted 6360 | 13 441 496 3046 178 2186 Guns 1484 | 13 441 496 160 63 311 Cannons 3766 | . . . 2886 115 765 Explosions 1110 | . . . . . 1110 Melee . | . . . . . . Ramming . | . . . . . . Kinetic 5104 | 13 441 423 2973 178 1076 Thermal 146 | . . 73 73 . . Explosive 1110 | . . . . . 1110 Electromagnetic . | . . . . . . Impact . | . . . . . . Slashing . | . . . . . . Piercing . | . . . . . . Highest Corruption 2 | . . . 2 . . Average Corruption 2 | . . . 2 . . Corruption Purged . | . . . . . . Corruption Blocked . | . . . . . . Effects 24 | . . . 24 . . Message Errors 7 | . . . 7 . . Matter Fused 4 | . . . 4 . . Heat Flow Errors 5 | . . . 5 . . Energy Discharges 5 | . . . 5 . . Data Loss (minor) 2 | . . . 2 . . Weapon Failures 1 | . . . 1 . . Overload Shots . | . . . . . . Overflow Damage 38 | . . . 38 . . Projectiles 38 | . . . 38 . . Explosions . | . . . . . . Melee . | . . . . . . Knockbacks 24 | . . . 20 . 4 Impact . | . . . . . . Kinetic 22 | . . . 19 . 3 Secondary 2 | . . . 1 . 1 Self-Inflicted Damage 48 | . . . . . 48 Shots 4 | . . . . . 4 Rammed . | . . . . . . Targets Rammed . | . . . . . . Kicked . | . . . . . . Crushed . | . . . . . . Highest Temperature 297 | . 2 29 297 90 159 Average Temperature 58 | . 2 9 66 29 60 Received Heat Transfer 1386 | . 84 252 657 63 330 Siege Activations . | . . . . . . Robots Corrupted . | . . . . . . Combat Hostiles . | . . . . . . Parts Fried . | . . . . . . Impact Corruptions . | . . . . . . Robots Melted . | . . . . . . Combat Hostiles . | . . . . . . Parts Melted . | . . . . . . Heat Transferred 397 | . . 222 175 . . Parts Sabotaged . | . . . . . . Parts Stolen . | . . . . . . Parts Stripped . | . . . . . . Power Chain Reactions . | . . . . . . Alert | -11 -10 -10 -9 -8 -8 ------- Run | Yrd Mat Min Mat Mat Gar Peak Influence 744 | 5 249 214 316 205 744 Initial 63 | . 3 . 39 63 13 Average 157 | 4 62 83 184 76 254 Maximum Alert Level 3 | . 1 1 1 1 3 Low Security (%) 74 | 100 92 91 70 93 49 Level 1 18 | . 7 8 29 6 14 Level 2 6 | . . . . . 33 Level 3 . | . . . . . 1 Level 4 . | . . . . . . Level 5 . | . . . . . . High Security . | . . . . . . Max Security . | . . . . . . Squads Dispatched 1 | . . . 1 . . Investigation . | . . . . . . Extermination . | . . . . . . Reinforcement 1 | . . . 1 . . Assault . | . . . . . . Garrison . | . . . . . . Intercept . | . . . . . . Searches Triggered . | . . . . . . Construction Impeded . | . . . . . . Haulers Reinforced . | . . . . . . Active Scanning Responses . | . . . . . . Cargo Convoy Interrupts . | . . . . . . Stealth | -11 -10 -10 -9 -8 -8 --------- Run | Yrd Mat Min Mat Mat Gar Distress Signals 7 | . 2 . 3 1 1 Communications Jammed . | . . . . . . Distress Signals . | . . . . . . Times Spotted 110 | . 14 14 38 9 35 Peak Tracking Total 10 | . 6 3 9 3 10 Tactical Retreats 5 | . . . 1 . 4 Traps | -11 -10 -10 -9 -8 -8 ------- Run | Yrd Mat Min Mat Mat Gar Traps Triggered 7 | . . . 1 . 6 Indirectly . | . . . . . . Trap Hack Attempts . | . . . . . . Triggered . | . . . . . . Disarmed . | . . . . . . Reprogrammed . | . . . . . . Reused . | . . . . . . Traps Extracted . | . . . . . . Installed . | . . . . . . Triggered . | . . . . . . Machines | -11 -10 -10 -9 -8 -8 ---------- Run | Yrd Mat Min Mat Mat Gar Machines Disabled 3 | . . . 2 1 . Max in Single Turn 1 | . . . 1 1 . Machines Repaired . | . . . . . . Machines Dismantled . | . . . . . . Machines Sabotaged . | . . . . . . Overloaded Fab Kills . | . . . . . . Hacking | -11 -10 -10 -9 -8 -8 --------- Run | Yrd Mat Min Mat Mat Gar Machines Accessed 21 | . 6 . 11 4 . Terminals 16 | . 5 . 8 3 . Fabricators . | . . . . . . Repair Stations 1 | . . . 1 . . Recycling Units 2 | . 1 . 1 . . Scanalyzers 1 | . . . 1 . . Garrison Access 1 | . . . . 1 . Total Hacks 64 | . 20 . 32 12 . Successful 45 | . 11 . 26 8 . Failed 18 | . 9 . 5 4 . Catastrophic 1 | . . . . 1 . Database Lockouts 1 | . . . 1 . . Manual 33 | . 17 . 12 4 . Terminals 47 | . 14 . 23 10 . Fabricators . | . . . . . . Repair Stations 2 | . . . 2 . . Recycling Units 9 | . 6 . 3 . . Scanalyzers 4 | . . . 4 . . Garrison Access 2 | . . . . 2 . Terminal Hacks 20 | . 3 . 13 4 . Part Schematic 3 | . . . 3 . . Robot Analysis 2 | . . . 2 . . Prototype ID Bank 2 | . . . 2 . . Branch Access Points 2 | . . . 1 1 . Terminal Index 2 | . 1 . . 1 . Repair Station Index 1 | . . . . 1 . Recycling Unit Index 1 | . . . 1 . . Unreport Threat 1 | . . . 1 . . Locate Traps 2 | . . . 1 1 . Dispatch Records 2 | . 2 . . . . Hauler Manifests 1 | . . . 1 . . Zone Layout 1 | . . . 1 . . Fabricator Hacks . | . . . . . . Repair Station Hacks 2 | . . . 2 . . Scan Component 1 | . . . 1 . . Repair 1 | . . . 1 . . Recycling Unit Hacks 2 | . 1 . 1 . . Retrieve Components 2 | . 1 . 1 . . Scanalyzer 4 | . . . 4 . . Insert Component 2 | . . . 2 . . Analyze 2 | . . . 2 . . Garrison Access Hacks 2 | . . . . 2 . Unlock Access 1 | . . . . 1 . Coupler Status 1 | . . . . 1 . Unauthorized Hacks 15 | . 7 . 6 2 . Terminals 11 | . 5 . 4 2 . Assimilate 2 | . 2 . . . . Botnet 7 | . 2 . 3 2 . Operators 2 | . 1 . 1 . . Fabricators . | . . . . . . Repair Stations . | . . . . . . Recycling Units 4 | . 2 . 2 . . Reject 2 | . 1 . 1 . . Mask 2 | . 1 . 1 . . Scanalyzers . | . . . . . . Garrison Access . | . . . . . . Data Cores Recovered . | . . . . . . Used . | . . . . . . Hacking Detections 12 | . 5 . 4 3 . Full Trace Events . | . . . . . . Feedback Events . | . . . . . . Feedback Blocked . | . . . . . . Robot Schematics Acquired . | . . . . . . Robots Built . | . . . . . . Authchips . | . . . . . . Time . | . . . . . . Total Robot Build Rating . | . . . . . . Part Schematics Acquired 4 | . . . 4 . . Parts Built . | . . . . . . Authchips . | . . . . . . Time . | . . . . . . Total Part Build Rating . | . . . . . . Parts Repaired 1 | . . . 1 . . Time 26 | . . . 26 . . Parts Recycled . | . . . . . . Recycled Matter . | . . . . . . Retrieved Matter . | . . . . . . Retrieved Components 3 | . 1 . 2 . . Parts Scanalyzed 2 | . . . 2 . . Part Schematics Acquired 2 | . . . 2 . . Parts Damaged . | . . . . . . Bothacking | -11 -10 -10 -9 -8 -8 ------------ Run | Yrd Mat Min Mat Mat Gar Used RIF Installer 1 | . . . . . 1 Robots Hacked . | . . . . . . Non-combat . | . . . . . . Combat . | . . . . . . Robot Hacks Applied . | . . . . . . Relay Couplers Released . | . . . . . . Fabnet Peak Effective % . | . . . . . . Robots Rewired . | . . . . . . Allies Hacked . | . . . . . . Hacks Repelled . | . . . . . . Allies | -11 -10 -10 -9 -8 -8 -------- Run | Yrd Mat Min Mat Mat Gar Total Allies 4 | . 2 2 . . . Largest Group 3 | . 2 3 1 1 1 Highest-Rated Group 53 | . 20 53 10 10 10 Highest-Rated Ally 31 | . 10 31 10 10 10 Total Orders 11 | . . 6 2 2 1 STAY 6 | . . 3 1 1 1 FOLLOW 5 | . . 3 1 1 . Ally Attacks 21 | . . 21 . . . Total Damage 231 | . . 231 . . . Kills 6 | . . 6 . . . Allies Corrupted . | . . . . . . Allies Melted . | . . . . . . Intel | -11 -10 -10 -9 -8 -8 ------- Run | Yrd Mat Min Mat Mat Gar Robot Analysis Total 2 | . . . 2 . . Derelict Logs Recovered 1 | . . 1 . . . Drone Launches . | . . . . . . Drone Recoveries . | . . . . . . Exploration | -11 -10 -10 -9 -8 -8 ------------- Run | Yrd Mat Min Mat Mat Gar Turns Passed 6749 | 29 908 769 2956 750 1337 Spaces Moved 3178 | 19 405 401 1445 354 554 Core . | . . . . . . Treads 1273 | . 146 401 469 1 256 Legs 278 | 19 259 . . . . Wheels 1627 | . . . 976 353 298 Hover . | . . . . . . Flight . | . . . . . . Fastest Speed 120 | 120 120 160 155 170 160 Average Speed 163 | 120 134 160 158 170 198 Slowest Speed 320 | 120 190 160 170 320 305 Overloaded Moves . | . . . . . . Propulsion Burnouts . | . . . . . . Robots Hopped . | . . . . . . Cave-ins Triggered . | . . . . . . Exploration Rate (%) 53 | 3 59 90 97 16 55 Regions Visited 5 Branch Regions 1 Pre-discovered Areas . | . . . . . . Known Exits Taken 1 | . . . . 1 . Unknown Exits Taken 4 | 1 1 1 1 . . Scrap Searched 1 | . . 1 . . . Spaces Dug . | . . . . . . Terrain Destroyed 92 | . . . 8 . 84 Melee . | . . . . . . Projectile 8 | . . . 8 . . AOE 84 | . . . . . 84 Terrain Rammed . | . . . . . . Walls Destroyed . | . . . . . . Machines Disabled . | . . . . . . Actions | -11 -10 -10 -9 -8 -8 --------- Run | Yrd Mat Min Mat Mat Gar Total 4300 | 22 719 475 1912 488 684 Wait 725 | 2 271 26 304 115 7 Move 3173 | 18 404 400 1444 353 554 Hop . | . . . . . . Pick Up 33 | . 7 3 19 4 . Fast Attach 18 | 1 2 2 8 3 2 Attach 20 | . . 1 7 1 11 Detach . | . . . . . . Swap 20 | . 1 5 9 . 5 Drop 35 | . 8 7 12 5 3 Fire 236 | 1 26 31 109 7 62 Melee . | . . . . . . Ram . | . . . . . . Kick . | . . . . . . Crush . | . . . . . . Escape Stasis 40 | . . . . . 40 Rewire . | . . . . . . Trap . | . . . . . . Miscellaneous . | . . . . . . Route ------- -11/Scrapyard -10/Materials (discovered 2 exits: *Mat / [*Min]) -10/Mines (discovered 2 exits: *Mat x2) -9/Materials (discovered 4 exits: *Mat x3 / *Min) -8/Materials -8/Garrison (discovered 2 exits: [*Mat x2]) History --------- Turn | Location | Event 1 | -11/Scrapyard | Discovered new exit (range 3) 30 | -11/Scrapyard | Entered Materials 196 | -10/Materials | Discovered new exit (range 10) 218 | -10/Materials | Discovered new exit (range 16) 303 | -10/Materials | Build established: Mutant 938 | -10/Materials | Entered Mines 938 | -10/Mines | Accompanied by 2 allies 1039 | -10/Mines | Learned Materials trap positions 1115 | -10/Mines | Received a Rocket Launcher from a helpful Derelict 1225 | -10/Mines | Found a hidden stash of uninstalled traps 1324 | -10/Mines | Discovered new exit (range 8) 1461 | -10/Mines | Build established: Scavenger-Mutant 1685 | -10/Mines | Discovered new exit (range 12) 1707 | -10/Mines | Entered Materials 1707 | -9/Materials | Accompanied by 1 ally 1707 | -9/Materials | Evolved 2 slots: Utility x2 1708 | -9/Materials | Loaded intel: 15 trap records 2016 | -9/Materials | Build established: Mutant 2686 | -9/Materials | Discovered new exit (range 15) 2824 | -9/Materials | Discovered new exit (range 16) 2995 | -9/Materials | Identified exit to Mines 3539 | -9/Materials | Discovered new exit (range 15) 3797 | -9/Materials | Lost 3 parts (2u1w) 3979 | -9/Materials | Discovered new exit (range 10) 4283 | -9/Materials | Repaired Lgt. Armor Plating 4532 | -9/Materials | Central database locked down 4663 | -9/Materials | Entered another Materials area 4663 | -8/Materials | Accompanied by 1 ally 4663 | -8/Materials | Evolved 2 slots: Utility x2 5405 | -8/Materials | Identified exit to Garrison 5413 | -8/Materials | Entered Garrison 5413 | -8/Garrison | Accompanied by 1 ally 5514 | -8/Garrison | Installed Relay Interface Framework 5848 | -8/Garrison | Triggered checkpoint 5994 | -8/Garrison | Triggered checkpoint 6226 | -8/Garrison | Discovered new exit (range 13) 6240 | -8/Garrison | Triggered checkpoint 6249 | -8/Garrison | Discovered new exit (range 13) 6294 | -8/Garrison | Lost 5 parts (1p3u1w) 6296 | -8/Garrison | Destroyed 9 combat bots 6424 | -8/Garrison | Triggered checkpoint 6708 | -8/Garrison | Spotted B-75 Beast 6708 | -8/Garrison | Spotted B-75 Beast 6750 | -8/Garrison | Self-destructed Last Messages --------------- 06611_ W-25 Informer destroyed. 06613_ ALERT: Garrison interior compromised. 06636_ Acquired 23 matter. 06641_ Acquired 2 matter. 06716_ B-75 Beast springs to life. 06720_ S-10 Pest destroyed. 06727_ Lgt. Armor Plating destroyed. 06727_ Critical hit (Burn: +37). 06731_ Hvy. Assault Rifle destroyed. 06731_ Lgt. Armor Plating destroyed. 06733_ S-10 Pest destroyed. 06734_ Assault Cannon destroyed. 06734_ Adv. Treads destroyed. 06734_ Imp. Treads destroyed. 06734_ Rocket Launcher destroyed. 06737_ Garrison Terminal disabled. 06740_ Hacking Suite destroyed. 06741_ G-47 Trooper destroyed. 06743_ Rocket Launcher destroyed. 06747_ Acquired 5 matter. Map ----- +----------------------------------------------------+ | ?????????????????????????????????????????????????? | | ?????????????????????????????????????????????????? | | ?????????????????????????????????????????????????? | | ?????????????????????????????????????????????????? | | ?????????????????????????????????????????????????? | | ????????????????????????????????????####?????????? | | ????????????????????????????????????# #?????????? | | ????????????????????????????????????# #?????????? | | ????????????????????????????????????## #?????????? | | ?????????????????????????????????????# #?????????? | | ?????????????????????????????????????# #?#####???? | | ?????????????????????????????????????# #?#=%%#???? | | ?????????????????????????######???####"###% ##### | | ?????????????????????????#! ??# *=! | | ?????????????????????????#! ??## ######+#### | | ?????????????????????????#! ???#"""""#???# #??# | | ?????????????????????????+ ???#######???# ??+ | | ?????????????????????????#! ?????????????# #??# | | ??????????????????????????! ??????????????# #??# | | ??????????????????????????! ??????????????# #??# | | ??????????????????????????" #??????????????# #??# | | ?????????????##???????????# ##?????????????# #### | | ?????????????# ????????# ??????????????# " | | ?????????????# #?????# #??????????????###### | | ?????????????# ####BB#???????????????????# | | ?????????? [ @%BB#???????????????????# | | ?????????? * % [ #???????????????????# | | ?????????????## #####BB#?????????????????### | | ??????????????# [ ??????#BB#???????########### [ | | ??????????????# ????????# #???????#= [ *= !=* | | ??????????????# ??????????# #???????#%#########[ | | ??????????????????????????# #######?# #???????# | | ??????????????????????????# ## #?#%#???????# | | ?????????????????????###### ## ###%##??????# | | ??????????????# %[% ######## | | ??????????????# | | ?????????????? | | ??????????????############ ## ## #########+ | | ?????????????????????????# ## ## ###?????# | | ?????????????????????????" ^^ #?????# | | ?????????????????????????" ^^ #?????## | | ?????????????????????????" ^ #??????? | | ?????????????????????????" ^ #??????? | | ?????????????????????????# ## ## ###??????? | | ?????????????????????????# ?# ## ########## | | ?????????????????????????# ! * | | ?????????????????????????# = | | ?????????????????????????# ######## | | ?????????????????????????## ##""""######??????# | | ??????????????????????????# ??????????????????# | +----------------------------------------------------+ Best States ------------- Heat Dissipation 31 Energy Generation 14 Energy Capacity 280 Matter Stores 300 Matter Capacity 300 Sight Range 16 Terrain Scan Density 10 Armor Coverage 300 Utility Shielding 33 Evasion (%) 55 Targeting Accuracy 16 Target Analysis 5 Recoil Reduction 2 Offensive Hacking 10 Item Schematics ----------------- Rocket Launcher | -9/Materials | Scanalyzed Imp. Targeting Computer | -9/Materials | Scanalyzed Mni. Grenade Launcher | -9/Materials | Hacked Med. Armor Plating | -9/Materials | Hacked Robot Schematics ------------------ None Fabricated ------------ Nothing Alien Tech Used ----------------- None Achievements -------------- None Challenges ------------ None Game ------ Seed DrainedNovaLegs Manual? 0 Play Time 00:48:01 Cumulative 68.9 hours Start 2024.05.01 @ 13:50:57 End 2024.05.01 @ 14:39:04 Sessions 1 Manual Loads 0 Difficulty Rogue Special Mode None Game No. 45 Rogue 45 Adventurer 0 Explorer 0 Win Type - Total 1 Types 1/0/0/0/0/0/0/0/0 Lore% 51 Gallery% 41 Achievement% 39 Wizard Run 0 Options --------- Layout 0 ASCII 0 Keyboard 0 Movement Mouse Keybinds 0 Fullscreen 1 Font 18/SmallcapsGlow Map View 76x50 Zoom Use 0% Tactical HUD 1 Map Filters NONE Filters NONE Steam 1 RUN: 2d6e5dcd-7ada-486d-bf5e-8afd4df097d9